bitfinex-derivatives/quotes_BTCF0:USTF0_20240905
["timestamp","ask_amount","ask_price","bid_price","bid_amount"]
[1725548453072,0.3648,56460.0,56459.0,0.4]
[1725548453371,0.3598,56460.0,56459.0,0.4]
[1725548453765,0.3598,56460.0,56459.0,0.93136]
[1725548454068,0.004,56460.0,56459.0,1.53136]
[1725548454261,0.004,56460.0,56459.0,0.40891929]
[1725548454457,0.004,56460.0,56459.0,0.00891929]
[1725548454970,0.004,56460.0,56456.0,0.1412]
[1725548455163,0.004,56460.0,56459.0,0.4]
[1725548455472,0.3608,56463.0,56456.0,0.00092]
[1725548455674,0.00026559,56469.0,56459.0,0.4]
[1725548455983,0.00026559,56469.0,56465.0,0.088554]
[1725548456265,0.00026559,56469.0,56464.0,0.088556]
[1725548456467,0.004,56465.0,56464.0,0.088556]
[1725548456670,0.00026559,56469.0,56465.0,0.088553]
[1725548456871,0.00026559,56469.0,56466.0,0.088552]
[1725548457466,0.00026559,56469.0,56467.0,0.088551]
[1725548457885,0.00026559,56469.0,56468.0,0.08855]
[1725548458170,0.00026559,56469.0,56464.0,0.004]
[1725548458382,0.004,56465.0,56464.0,0.092556]
[1725548458569,0.004,56465.0,56464.0,0.004]
[1725548459175,0.3648,56465.0,56464.0,0.004]
[1725548460979,0.24962966,56465.0,56464.0,0.004]
[1725548461368,0.00026559,56469.0,56464.0,0.004]
[1725548461770,0.3608,56466.0,56464.0,0.004]
[1725548461967,0.3608,56466.0,56455.0,0.00166699]
[1725548461968,0.088554,56465.0,56455.0,0.00166699]
[1725548462182,0.004,56456.0,56455.0,0.00659431]
[1725548462386,0.004,56456.0,56455.0,0.49023699]
[1725548462680,0.00026559,56469.0,56455.0,0.49023699]
[1725548462681,0.00026559,56469.0,56455.0,1.53306699]
[1725548462873,0.00026559,56469.0,56457.0,0.849366]
[1725548463070,0.00026559,56469.0,56457.0,0.7608]
[1725548463671,0.00026559,56469.0,56461.0,0.088559]
[1725548463672,0.08881359,56469.0,56461.0,0.088559]
[1725548463972,0.00026559,56469.0,56468.0,0.08855]
[1725548464373,0.00126559,56469.0,56468.0,0.08855]
[1725548465183,0.088562,56460.0,56459.0,0.008]
[1725548465478,0.3628,56460.0,56459.0,0.008]
[1725548465672,0.002,56460.0,56459.0,0.008]
[1725548465870,0.3628,56460.0,56459.0,0.008]
[1725548466067,0.3628,56460.0,56459.0,0.01683516]
[1725548466368,0.3628,56460.0,56459.0,0.44549839]
[1725548466574,0.3628,56460.0,56459.0,1.57685839]
[1725548466575,0.002,56460.0,56459.0,1.57685839]
[1725548466771,0.00626559,56469.0,56459.0,0.348]
[1725548466970,0.00626559,56469.0,56468.0,0.002]
[1725548468078,0.00726559,56469.0,56468.0,0.002]
[1725548468270,0.00126559,56469.0,56468.0,0.002]
[1725548468885,1.04964159,56469.0,56468.0,0.002]
[1725548469072,0.088562,56460.0,56459.0,0.013]
[1725548469383,1.152162,56460.0,56459.0,0.013]
[1725548469681,1.152162,56460.0,56455.0,0.00166699]
[1725548469682,0.177136,56456.0,56455.0,0.00166699]
[1725548469886,0.177136,56456.0,56438.0,0.00021457]
[1725548469887,0.088595,56439.0,56438.0,0.00021457]
[1725548470074,0.088595,56439.0,56426.0,0.088615]
[1725548470075,0.7048,56439.0,56426.0,0.088615]
[1725548470270,0.3608,56431.0,56426.0,0.34870399]
[1725548470580,0.004,56456.0,56426.0,0.34870399]
[1725548470581,0.7216,56427.0,56426.0,0.34508551]
[1725548470778,0.7216,56427.0,56426.0,0.34]
[1725548470974,0.00026559,56438.0,56426.0,1.560296]
[1725548470975,0.3608,56436.0,56426.0,1.560296]
[1725548471177,0.3608,56436.0,56426.0,0.00889804]
[1725548471369,0.3608,56436.0,56418.0,0.05273413]
[1725548471370,0.3608,56429.0,56428.0,0.428612]
[1725548471575,0.29874785,56429.0,56420.0,0.34]
[1725548471778,0.004,56421.0,56420.0,0.34]
[1725548471994,0.004,56421.0,56420.0,0.53172]
[1725548472178,0.004,56421.0,56420.0,1.13172]
[1725548472485,0.3608,56440.0,56421.0,0.53168]
[1725548472687,0.3608,56448.0,56421.0,0.53168]
[1725548472688,0.3608,56442.0,56428.0,0.7608]
[1725548472885,0.3608,56442.0,56433.0,0.3608]
[1725548472886,0.001,56439.0,56433.0,0.3608]
[1725548473072,0.001,56439.0,56434.0,0.088602]
[1725548473275,0.3608,56442.0,56433.0,0.088604]
[1725548473577,0.004,56434.0,56433.0,0.088605]
[1725548473883,0.004,56434.0,56432.0,0.00026583]
[1725548474382,0.004,56433.0,56432.0,0.00026583]
[1725548474884,0.3648,56433.0,56432.0,0.00026583]
[1725548475083,0.3648,56433.0,56432.0,0.53186583]
[1725548475289,0.001,56439.0,56437.0,0.088598]
[1725548475484,0.001,56439.0,56438.0,0.002]
[1725548475875,0.00026583,56443.0,56438.0,1.13356]
[1725548476081,0.00026583,56443.0,56442.0,0.002]
[1725548476282,0.00026583,56443.0,56442.0,1.13352]
[1725548476585,0.3608,56452.0,56442.0,1.13352]
[1725548476786,0.449375,56452.0,56451.0,0.002]
[1725548477880,0.088583,56447.0,56446.0,0.00026583]
[1725548478084,0.849383,56447.0,56446.0,0.00026583]
[1725548478389,0.088605,56433.0,56425.0,0.05273413]
[1725548478686,0.002,56427.0,56425.0,0.00508675]
[1725548479071,0.002,56427.0,56425.0,0.01376621]
[1725548479276,0.090614,56427.0,56425.0,0.05782088]
[1725548479510,0.090614,56427.0,56426.0,0.06073413]
[1725548479783,0.090614,56427.0,56426.0,0.008]
[1725548480288,0.002,56427.0,56426.0,0.008]
[1725548480689,0.002,56427.0,56426.0,1.2100262]
[1725548480891,0.00128,56431.0,56430.0,0.088609]
[1725548481187,0.001,56433.0,56430.0,0.53699147]
[1725548481373,0.001,56433.0,56432.0,0.3608]
[1725548481579,0.3608,56444.0,56432.0,0.58563379]
[1725548481776,0.3608,56444.0,56443.0,0.402]
[1725548481976,0.3608,56445.0,56443.0,0.402]
[1725548482178,0.088587,56445.0,56444.0,0.002]
[1725548482585,0.088587,56445.0,56438.0,0.00026583]
[1725548482586,0.17719,56439.0,56438.0,0.00026583]
[1725548482879,0.451395,56439.0,56438.0,0.00026583]
[1725548483082,0.53999,56439.0,56438.0,0.00026583]
[1725548483479,0.451395,56439.0,56438.0,0.00026583]
[1725548484379,0.53999,56439.0,56438.0,0.00026583]
[1725548484583,0.451395,56439.0,56438.0,0.00026583]
[1725548485089,0.007,56439.0,56438.0,1.22142283]
[1725548485288,0.3608,56451.0,56438.0,1.22142283]
[1725548485289,0.013,56445.0,56438.0,0.00126583]
[1725548485488,0.101586,56445.0,56444.0,0.002]
[1725548486194,0.088586,56445.0,56444.0,0.002]
[1725548487086,0.101586,56445.0,56444.0,0.003]
[1725548487283,0.013,56445.0,56444.0,0.003]
[1725548487586,0.013,56445.0,56444.0,0.004]
[1725548487587,0.025,56445.0,56444.0,0.004]
[1725548487790,0.025,56445.0,56444.0,0.092587]
[1725548488097,0.025,56445.0,56444.0,0.004]
[1725548488283,0.025,56445.0,56444.0,0.14531975]
[1725548488481,0.3608,56459.0,56444.0,1.624067]
[1725548488792,0.488551,56467.0,56444.0,1.624067]
[1725548488793,0.3608,56466.0,56458.0,0.05478458]
[1725548488990,0.3608,56466.0,56465.0,0.002]
[1725548489493,0.3608,56466.0,56465.0,1.13328]
[1725548489695,0.3608,56481.0,56465.0,1.5819281]
[1725548489991,0.081513,56492.0,56480.0,0.7628]
[1725548490192,0.00026559,56492.0,56491.0,0.002]
[1725548490392,0.00026559,56492.0,56489.0,0.3608]
[1725548490588,0.00026559,56492.0,56490.0,0.93108]
[1725548490786,0.3608,56507.0,56497.0,0.088503]
[1725548490985,0.3608,56507.0,56506.0,0.002]
[1725548491186,0.449289,56507.0,56506.0,0.002]
[1725548491396,0.449289,56507.0,56489.0,0.0878481]
[1725548491397,0.088507,56495.0,56494.0,0.07023665]
[1725548491607,0.7236,56495.0,56480.0,0.01078309]
[1725548491894,0.3588,56484.0,56480.0,0.002]
[1725548492091,0.088529,56482.0,56480.0,0.002]
[1725548492493,0.088529,56482.0,56470.0,0.00877068]
[1725548492494,0.087529,56482.0,56476.0,0.00026559]
[1725548492687,0.3608,56477.0,56476.0,0.00026559]
[1725548492895,0.002,56477.0,56476.0,0.40026559]
[1725548493085,0.3618,56477.0,56476.0,0.00026559]
[1725548493287,0.001,56477.0,56476.0,0.00026559]
[1725548494396,0.3588,56484.0,56476.0,0.40026559]
[1725548494596,0.004,56484.0,56483.0,0.002]
[1725548495386,0.00026559,56485.0,56483.0,0.621645]
[1725548495587,0.00026559,56485.0,56484.0,0.53312]
[1725548495790,0.3608,56502.0,56484.0,0.53312]
[1725548495995,0.3608,56502.0,56501.0,0.002]
[1725548496202,0.1456,56507.0,56501.0,0.002]
[1725548496394,0.088495,56503.0,56501.0,0.002]
[1725548496696,0.3608,56504.0,56489.0,0.4]
[1725548496902,0.3608,56498.0,56491.0,0.00026559]
[1725548497086,0.3608,56492.0,56491.0,0.00026559]
[1725548497898,0.3598,56492.0,56491.0,0.00026559]
[1725548498790,0.3598,56492.0,56491.0,0.00126559]
[1725548498791,1.673864,56492.0,56491.0,0.00126559]
[1725548498996,1.64094,56492.0,56475.0,0.3608]
[1725548499185,0.3608,56484.0,56479.0,0.4]
[1725548499386,0.3608,56484.0,56479.0,0.40869257]
[1725548499588,0.1523,56491.0,56467.0,0.90202848]
[1725548499589,0.3608,56481.0,56467.0,0.90202848]
[1725548499890,0.002,56468.0,56458.0,0.05267748]
[1725548500095,0.002,56468.0,56457.0,0.40869168]
[1725548500096,0.002,56459.0,56457.0,0.488566]
[1725548500299,0.002,56459.0,56456.0,0.00874128]
[1725548500300,0.002,56458.0,56452.0,0.00026559]
[1725548500601,0.3608,56461.0,56452.0,0.00026559]
[1725548500602,0.3608,56456.0,56452.0,0.00026559]
[1725548500787,0.088572,56454.0,56452.0,0.00026559]
[1725548500993,0.449372,56454.0,56452.0,0.00026559]
[1725548501289,1.566772,56454.0,56452.0,0.00026559]
[1725548501704,1.035372,56454.0,56452.0,0.00026559]
[1725548502010,0.441372,56454.0,56452.0,0.00126559]
[1725548502700,0.5314,56453.0,56452.0,0.00126559]
[1725548503195,0.453292,56454.0,56452.0,0.00126559]
[1725548503398,0.017,56454.0,56453.0,0.002]
[1725548503799,0.3668,56454.0,56453.0,0.002]
[1725548505105,0.3608,56454.0,56453.0,0.002]
[1725548505305,0.012,56454.0,56453.0,0.090573]
[1725548505607,0.012,56454.0,56453.0,1.982773]
[1725548505608,0.00873441,56454.0,56453.0,1.982773]
[1725548505996,0.01273441,56454.0,56453.0,1.982773]
[1725548506193,0.3608,56473.0,56455.0,0.088569]
[1725548506393,0.3608,56473.0,56453.0,1.8942]
[1725548506394,0.3608,56473.0,56468.0,0.002]
[1725548506793,0.088545,56471.0,56468.0,0.002]
[1725548507195,0.08881359,56469.0,56468.0,0.002]
[1725548507491,0.088557,56464.0,56444.0,0.4]
[1725548507700,1.13154559,56469.0,56454.0,0.088571]
[1725548507701,0.3608,56462.0,56454.0,0.088571]
[1725548507893,0.3608,56462.0,56450.0,0.4]
[1725548507894,0.3608,56456.0,56450.0,0.4]
[1725548508093,0.002,56453.0,56450.0,0.4]
[1725548508297,0.002,56453.0,56449.0,0.088579]
[1725548508501,0.002,56453.0,56451.0,0.088576]
[1725548508502,0.001,56453.0,56451.0,0.088576]
[1725548508701,0.001,56453.0,56452.0,0.44964059]
[1725548508907,0.3608,56462.0,56453.0,0.5314]
[1725548509103,0.3608,56462.0,56461.0,0.002]
[1725548509405,0.3608,56467.0,56462.0,0.088558]
[1725548509596,0.3608,56467.0,56463.0,0.088557]
[1725548509790,0.088539,56475.0,56466.0,0.3608]
[1725548509990,0.5078,56479.0,56468.0,0.002]
[1725548509991,0.3608,56479.0,56468.0,0.002]
[1725548510191,0.088546,56471.0,56468.0,0.002]
[1725548510492,0.45461359,56469.0,56468.0,0.002]
[1725548510689,0.44961359,56469.0,56468.0,0.002]
[1725548511307,0.36106559,56469.0,56468.0,0.002]
[1725548511608,0.36106559,56469.0,56468.0,0.003]
[1725548511609,0.45561359,56469.0,56468.0,0.003]
[1725548512193,0.54416159,56469.0,56468.0,0.003]
[1725548512493,0.54416159,56469.0,56441.0,0.14126948]
[1725548512494,0.088573,56453.0,56441.0,0.14126948]
[1725548512692,0.088598,56437.0,56435.0,0.016]
[1725548512895,0.002,56437.0,56436.0,0.08878126]
[1725548513096,0.3608,56438.0,56436.0,0.00018226]
[1725548513302,0.3608,56438.0,56437.0,0.088598]
[1725548513508,0.3628,56453.0,56443.0,0.088588]
[1725548513703,0.3628,56453.0,56444.0,0.3608]
[1725548514001,0.3628,56453.0,56443.0,0.4]
[1725548514002,0.3608,56448.0,56443.0,0.4]
[1725548514205,0.002,56444.0,56443.0,0.4]
[1725548514404,0.3608,56453.0,56443.0,1.89232]
[1725548514703,0.3608,56453.0,56451.0,0.4]
[1725548514903,0.3648,56453.0,56442.0,0.00026559]
[1725548515093,0.002,56443.0,56442.0,0.00026559]
[1725548515295,0.002,56443.0,56442.0,0.00895271]
[1725548515501,0.3608,56448.0,56442.0,0.00026559]
[1725548515909,0.088587,56444.0,56443.0,0.005]
[1725548516215,0.177174,56444.0,56443.0,0.005]
[1725548516697,0.088589,56443.0,56442.0,0.00826559]
[1725548516898,0.090589,56443.0,56442.0,0.00826559]
[1725548517595,0.090589,56443.0,56442.0,0.01126559]
[1725548518098,0.179178,56443.0,56442.0,0.01126559]
[1725548518903,0.086589,56443.0,56442.0,0.00326559]
[1725548519708,0.3608,56446.0,56442.0,0.00826559]
[1725548519911,0.00026559,56454.0,56442.0,0.00826559]
[1725548520212,0.00026559,56454.0,56445.0,0.4]
[1725548520514,0.36106559,56454.0,56445.0,0.4]
[1725548520806,0.00026559,56454.0,56444.0,0.088587]
[1725548521014,0.002,56445.0,56443.0,0.3618]
[1725548521309,0.002,56444.0,56443.0,1.049389]
[1725548521507,0.088575,56452.0,56443.0,1.3608]
[1725548521721,0.3608,56453.0,56443.0,0.7608]
[1725548522011,0.088587,56444.0,56443.0,0.3608]
[1725548522209,0.08858,56449.0,56443.0,0.3608]
[1725548522600,0.08858,56449.0,56442.0,0.00526559]
[1725548522601,0.3608,56453.0,56442.0,0.00026559]
[1725548522801,0.088581,56448.0,56442.0,0.00526559]
[1725548523006,0.002,56443.0,56442.0,0.00526559]
[1725548523203,0.090589,56443.0,56442.0,0.00526559]
[1725548523503,0.3608,56453.0,56442.0,0.00526559]
[1725548523504,0.00026559,56454.0,56443.0,0.003]
[1725548523705,0.3608,56466.0,56457.0,0.088567]
[1725548523911,0.3608,56466.0,56458.0,0.36950894]
[1725548523912,0.449353,56466.0,56458.0,0.36950894]
[1725548524107,0.449353,56466.0,56460.0,0.088562]
[1725548524108,0.3608,56466.0,56460.0,0.088562]
[1725548524405,0.3608,56473.0,56463.0,0.3608]
[1725548524602,0.3608,56468.0,56462.0,0.00026559]
[1725548524804,0.002,56463.0,56462.0,0.09788695]
[1725548525010,0.002,56463.0,56462.0,0.08882459]
[1725548525202,0.00173441,56463.0,56462.0,1.22014459]
[1725548525409,0.3608,56479.0,56467.0,0.088551]
[1725548525612,0.3608,56479.0,56470.0,0.4]
[1725548526004,0.3608,56486.0,56477.0,0.3608]
[1725548526205,0.4,56495.0,56481.0,0.3608]
[1725548526206,0.3608,56492.0,56481.0,0.3608]
[1725548526417,0.00026559,56492.0,56483.0,0.088526]
[1725548526615,0.00026559,56492.0,56482.0,0.3608]
[1725548526616,0.40026559,56492.0,56482.0,0.3608]
[1725548526808,0.088528,56482.0,56481.0,0.00026559]
[1725548527115,0.090528,56482.0,56481.0,0.00026559]
[1725548527421,0.088528,56482.0,56481.0,0.00026559]
[1725548527610,1.13116,56482.0,56462.0,0.06067748]
[1725548527809,0.3628,56483.0,56462.0,0.008]
[1725548527810,0.002,56463.0,56462.0,0.008]
[1725548528509,0.450357,56463.0,56462.0,0.005]
[1725548528710,0.450357,56463.0,56452.0,0.05267748]
[1725548528711,0.088565,56458.0,56457.0,0.00026559]
[1725548529309,0.002,56458.0,56457.0,0.00026559]
[1725548529614,0.451365,56458.0,56457.0,0.00026559]
[1725548530007,1.580725,56458.0,56457.0,0.00026559]
[1725548530407,1.580725,56458.0,56447.0,0.3608]
[1725548530408,1.976725,56458.0,56447.0,0.3608]
[1725548530723,1.976725,56458.0,56440.0,0.028]
[1725548530724,0.002,56448.0,56440.0,0.028]
[1725548530907,0.449392,56441.0,56440.0,0.028]
[1725548531104,0.3608,56441.0,56440.0,0.028]
[1725548531317,0.3618,56441.0,56440.0,0.028]
[1725548531507,0.450392,56441.0,56440.0,0.028]
[1725548532026,0.450392,56441.0,56435.0,0.00046282]
[1725548532027,0.0886,56436.0,56435.0,0.00026559]
[1725548532222,0.4534,56436.0,56435.0,0.00026559]
[1725548532408,0.4524,56436.0,56435.0,0.00026559]
[1725548532612,0.004,56436.0,56435.0,0.00026559]
[1725548532915,0.448392,56441.0,56440.0,0.002]
[1725548533115,0.3598,56441.0,56440.0,0.002]
[1725548533308,0.3598,56441.0,56440.0,0.007]
[1725548533615,0.088586,56445.0,56440.0,0.005]
[1725548533917,0.449392,56441.0,56440.0,0.005]
[1725548534110,0.449392,56441.0,56435.0,0.00426559]
[1725548534305,0.458392,56441.0,56440.0,0.001]
[1725548534912,2.078504,56441.0,56440.0,0.001]
[1725548535117,2.078504,56441.0,56435.0,0.00426559]
[1725548535118,0.0876,56436.0,56435.0,0.00426559]
[1725548535309,0.941,56436.0,56435.0,0.00426559]
[1725548535510,0.088626,56420.0,56418.0,0.3608]
[1725548535711,0.004,56419.0,56418.0,0.3608]
[1725548536306,0.003,56419.0,56418.0,0.3608]
[1725548536910,0.002,56419.0,56418.0,0.3648]
[1725548537408,0.002,56419.0,56418.0,0.453428]
[1725548537919,0.002,56419.0,56418.0,0.456428]
[1725548538109,0.00026583,56424.0,56418.0,0.456428]
[1725548538110,0.00026583,56424.0,56423.0,0.08862]
[1725548538416,0.00026583,56424.0,56423.0,0.44942]
[1725548538808,0.1435,56445.0,56423.0,1.5811]
[1725548538809,0.00513967,56444.0,56423.0,1.5811]
[1725548539018,0.5435,56445.0,56434.0,0.4]
[1725548539019,0.14454001,56445.0,56434.0,0.4]
[1725548539221,0.08859,56443.0,56434.0,0.4]
[1725548539531,0.5316,56435.0,56423.0,0.3608]
[1725548539710,1.3608,56436.0,56424.0,0.4]
[1725548539711,0.3608,56430.0,56424.0,0.4]
[1725548539908,0.3608,56430.0,56423.0,0.3608]
[1725548539909,0.3608,56430.0,56423.0,0.36947826]
[1725548540114,0.004,56424.0,56421.0,0.00026583]
[1725548540308,0.004,56422.0,56421.0,0.08888883]
[1725548540511,0.004,56424.0,56421.0,0.09769034]
[1725548540709,0.004,56424.0,56422.0,0.088622]
[1725548541008,0.006,56424.0,56423.0,0.44942]
[1725548541616,0.3618,56430.0,56423.0,0.3608]
[1725548541821,0.001,56430.0,56425.0,0.4]
[1725548542117,0.001,56430.0,56429.0,0.449411]
[1725548542325,0.488576,56452.0,56429.0,0.449411]
[1725548542326,0.3608,56450.0,56429.0,1.01347748]
[1725548542514,0.3608,56450.0,56446.0,0.4]
[1725548542822,0.3608,56450.0,56440.0,0.4]
[1725548543029,0.3608,56450.0,56442.0,0.3608]
[1725548543324,0.088588,56444.0,56442.0,0.3608]
[1725548543519,0.088589,56444.0,56440.0,0.00026583]
[1725548543724,0.004,56441.0,56440.0,0.00026583]
[1725548543920,0.004,56441.0,56440.0,0.40026583]
[1725548544220,0.01,56450.0,56440.0,1.98217983]
[1725548544412,0.016,56450.0,56449.0,0.088579]
[1725548545215,0.01,56450.0,56449.0,0.088579]
[1725548545413,0.01,56450.0,56447.0,0.50652]
[1725548545719,0.00026583,56452.0,56447.0,0.3608]
[1725548545918,0.004,56448.0,56447.0,0.3608]
[1725548546624,0.004,56448.0,56440.0,0.00026583]
[1725548546924,0.092592,56441.0,56440.0,0.00026583]
[1725548547224,0.091592,56441.0,56440.0,0.00026583]
[1725548548322,0.004,56441.0,56440.0,0.00026583]
[1725548548521,0.092592,56441.0,56440.0,0.00026583]
[1725548548727,0.106592,56441.0,56440.0,0.00026583]
[1725548549027,0.195184,56441.0,56440.0,0.00026583]
[1725548549234,0.088606,56432.0,56431.0,0.007]
[1725548549531,0.453406,56432.0,56431.0,0.007]
[1725548549724,0.092606,56432.0,56431.0,0.007]
[1725548549922,0.091606,56432.0,56431.0,0.007]
[1725548550718,0.088614,56427.0,56426.0,0.00026583]
[1725548550920,0.942028,56427.0,56426.0,0.00026583]
[1725548551116,0.942028,56427.0,56414.0,0.3608]
[1725548551117,1.0397,56427.0,56414.0,0.3608]
[1725548551331,0.3608,56410.0,56393.0,0.088667]
[1725548551527,0.3608,56410.0,56387.0,0.07030992]
[1725548551528,0.3608,56399.0,56396.0,0.45274767]
[1725548551723,0.3608,56399.0,56397.0,0.620581]
[1725548551724,0.23664327,56399.0,56397.0,0.620581]
[1725548552227,0.23664327,56399.0,56398.0,0.53192]
[1725548552433,0.23577484,56399.0,56398.0,0.53192]
[1725548552728,0.23577484,56399.0,56397.0,0.09771325]
[1725548552924,0.22832483,56399.0,56398.0,0.53192]
[1725548553127,0.004,56415.0,56408.0,0.088644]
[1725548553128,0.35306583,56409.0,56408.0,0.088644]
[1725548553327,0.35306583,56409.0,56408.0,0.49770689]
[1725548553528,0.35306583,56409.0,56408.0,1.62954689]
[1725548553732,0.004,56415.0,56414.0,0.088634]
[1725548553932,0.004,56415.0,56414.0,0.488634]
[1725548554230,0.004,56415.0,56414.0,1.620394]
[1725548554428,0.004,56415.0,56414.0,1.020394]
[1725548554935,0.004,56415.0,56414.0,1.620394]
[1725548555131,0.005,56415.0,56414.0,1.620394]
[1725548555337,0.00026583,56420.0,56419.0,0.088627]
[1725548555526,0.35206584,56434.0,56419.0,0.7608]
[1725548555836,0.35206584,56434.0,56433.0,0.4]
[1725548556032,0.35206584,56434.0,56433.0,0.4088333]
[1725548556235,0.35206584,56434.0,56433.0,1.5]
[1725548556625,0.35206584,56434.0,56433.0,1.2]
[1725548556826,0.35406584,56434.0,56433.0,1.2]
[1725548557027,0.35406584,56434.0,56429.0,0.4]
[1725548557239,0.004,56430.0,56429.0,0.4]
[1725548557442,0.004,56430.0,56429.0,1.088611]
[1725548557736,0.019,56434.0,56433.0,0.089605]
[1725548557932,0.00026583,56439.0,56438.0,0.088597]
[1725548558125,0.00026583,56439.0,56438.0,0.90220041]
[1725548558327,0.00026583,56439.0,56438.0,3.480957]
[1725548558526,0.35306583,56443.0,56442.0,0.08859]
[1725548558731,0.35306583,56443.0,56442.0,0.62880448]
[1725548559324,0.35306583,56443.0,56442.0,1.22880448]
[1725548559531,0.35306583,56443.0,56442.0,1.28161692]
[1725548559741,0.35306583,56460.0,56442.0,0.3608]
[1725548559927,0.088557,56464.0,56458.0,0.4]
[1725548560128,0.3608,56466.0,56458.0,0.4]
[1725548560344,0.3608,56466.0,56463.0,0.4]
[1725548560551,0.3608,56466.0,56465.0,0.088554]
[1725548560729,0.3608,56466.0,56463.0,0.4]
[1725548560924,0.002,56464.0,56463.0,0.4]
[1725548561131,0.002,56464.0,56463.0,1.5]
[1725548561132,0.090556,56464.0,56463.0,1.5]
[1725548561328,0.090556,56464.0,56459.0,0.00026583]
[1725548561329,0.088562,56460.0,56459.0,0.00026583]
[1725548561537,0.090562,56460.0,56459.0,0.00026583]
[1725548562238,0.002,56460.0,56459.0,0.00026583]
[1725548562840,0.53136,56459.0,56443.0,0.05280998]
[1725548563027,0.449374,56453.0,56443.0,0.00896353]
[1725548563234,0.001,56444.0,56442.0,0.4]
[1725548563431,0.001,56444.0,56443.0,0.00889618]
[1725548563740,0.3598,56453.0,56442.0,0.4]
[1725548563939,0.3598,56453.0,56442.0,0.40026583]
[1725548563940,0.002,56443.0,56442.0,0.40026583]
[1725548564129,0.00026583,56453.0,56442.0,0.00026583]
[1725548564130,0.3608,56449.0,56442.0,0.00026583]
[1725548564742,0.088584,56446.0,56442.0,0.00026583]
[1725548564934,0.3608,56449.0,56442.0,0.00026583]
[1725548565142,0.088584,56446.0,56442.0,0.00026583]
[1725548565533,0.3608,56449.0,56442.0,0.00026583]
[1725548565743,0.3608,56444.0,56442.0,0.00026583]
[1725548565941,0.3608,56449.0,56442.0,0.00326583]
[1725548566145,0.3608,56449.0,56447.0,0.4]
[1725548566446,0.00026583,56453.0,56447.0,0.4]
[1725548566639,0.00026583,56453.0,56452.0,0.4]
[1725548567436,0.00026583,56453.0,56452.0,0.488575]
[1725548567836,0.00026583,56453.0,56452.0,1.020015]
[1725548568332,0.00026583,56453.0,56452.0,1.620015]
[1725548568529,0.00026583,56453.0,56452.0,1.020015]
[1725548568738,0.00026583,56453.0,56452.0,2.520015]
[1725548568936,0.00026583,56453.0,56452.0,1.988575]
[1725548569343,0.00026583,56453.0,56452.0,3.120015]
[1725548569555,0.00826583,56453.0,56452.0,3.121015]
[1725548569842,0.01026583,56453.0,56452.0,3.122015]
[1725548570042,0.01026583,56453.0,56452.0,2.57482498]
[1725548570239,0.01026583,56453.0,56452.0,3.122015]
[1725548570442,0.01026583,56453.0,56452.0,3.17482498]
[1725548570943,0.01026583,56453.0,56452.0,2.522015]
[1725548571139,0.01026583,56453.0,56452.0,3.122015]
[1725548571442,0.01026583,56453.0,56452.0,3.17482498]
[1725548571641,0.449342,56473.0,56452.0,3.17482498]
[1725548571642,0.449342,56473.0,56461.0,0.08856]
[1725548571830,0.11783116,56507.0,56452.0,3.08624998]
[1725548571831,0.00092,56480.0,56472.0,0.4]
[1725548572034,0.5074,56486.0,56478.0,0.4]
[1725548572035,0.50062001,56481.0,56478.0,0.4]
[1725548572440,0.50062001,56481.0,56470.0,0.00902399]
[1725548572441,0.50062001,56481.0,56472.0,0.4]
[1725548572643,0.004,56473.0,56472.0,0.4]
[1725548573237,0.004,56473.0,56472.0,0.401]
[1725548573438,0.012,56473.0,56472.0,0.401]
[1725548573843,0.012,56473.0,56472.0,0.002]
[1725548573844,0.099542,56473.0,56472.0,0.002]
[1725548574043,0.460342,56473.0,56472.0,0.002]
[1725548574248,0.3718,56473.0,56472.0,0.002]
[1725548576050,0.453342,56473.0,56472.0,0.001]
[1725548576443,0.541884,56473.0,56472.0,0.001]
[1725548576639,0.087543,56472.0,56458.0,0.4]
[1725548576843,0.004,56459.0,56458.0,0.4]
[1725548577135,0.004,56459.0,56458.0,0.40886654]
[1725548577339,0.004,56459.0,56454.0,0.362]
[1725548577648,0.003,56455.0,56453.0,0.40504937]
[1725548577844,0.004,56454.0,56453.0,0.49362237]
[1725548578346,0.004,56454.0,56453.0,0.41402485]
[1725548578937,0.36106559,56460.0,56453.0,0.41402485]
[1725548579443,0.083572,56454.0,56453.0,0.00504937]
[1725548579642,0.088578,56450.0,56449.0,0.00877559]
[1725548579946,0.088579,56449.0,56448.0,0.00026559]
[1725548580154,0.086579,56449.0,56448.0,0.00538583]
[1725548580354,0.083579,56449.0,56448.0,0.00026559]
[1725548580540,1.215019,56449.0,56434.0,0.4]
[1725548580745,0.002,56435.0,56434.0,0.4]
[1725548581253,0.002,56435.0,56434.0,1.620203]
[1725548581558,0.002,56435.0,56434.0,1.020203]
[1725548581741,0.00146882,56435.0,56434.0,1.620203]
[1725548582145,0.00026559,56440.0,56439.0,0.088595]
[1725548582446,0.002,56450.0,56449.0,0.088579]
[1725548582748,0.3608,56466.0,56462.0,0.088558]
[1725548582940,0.3608,56466.0,56465.0,0.4]
[1725548583139,0.3608,56466.0,56465.0,0.488554]
[1725548583338,0.3608,56466.0,56465.0,1.019834]
[1725548583945,0.3608,56466.0,56465.0,1.02485224]
[1725548584256,0.3688,56466.0,56462.0,0.001]
[1725548584439,0.002,56463.0,56462.0,0.001]
[1725548584750,0.001,56463.0,56462.0,0.001]
[1725548585642,0.013,56466.0,56460.0,0.36106559]